bitfinex/quotes_ETHUSD_20260130
["timestamp","ask_amount","ask_price","bid_price","bid_amount"]
[1769737833308,0.01110411,2738.8,2736.9,0.91344221]
[1769737833458,0.01110411,2738.8,2736.8,3.65376886]
[1769737833459,0.01110411,2738.4,2736.8,0.91345141]
[1769737833658,0.01110411,2738.2,2736.8,0.91345141]
[1769737833858,3.66167177,2739.4,2736.8,1.73557702]
[1769737834067,0.01110411,2738.8,2736.8,1.73557702]
[1769737834371,0.01110411,2739.1,2737.2,13.87117256]
[1769737834560,0.91280852,2738.8,2737.4,0.91327537]
[1769737834762,0.91364456,2739.3,2737.4,13.90403797]
[1769737835070,0.001,2739.3,2737.6,0.01110411]
[1769737835267,0.001,2739.3,2737.7,12.97965849]
[1769737835478,0.91364269,2739.3,2737.4,0.91327537]
[1769737835784,0.45642104,2739.2,2737.5,0.59534941]
[1769737835986,0.01110411,2739.0,2737.3,0.91328602]
[1769737836191,0.01110411,2738.8,2737.3,0.91330745]
[1769737836358,0.01110411,2738.8,2737.3,0.91330688]
[1769737836557,14.70331435,2738.6,2736.4,3.65437771]
[1769737836761,14.70331435,2738.6,2735.0,1.89317618]
[1769737836762,0.01110411,2737.4,2735.0,3.6562792]
[1769737836958,0.01110411,2738.2,2736.3,0.91361205]
[1769737837196,0.01110411,2738.0,2736.3,0.91361205]
[1769737837423,0.01110411,2737.4,2735.8,0.91378798]
[1769737837585,0.01110411,2737.6,2735.1,3.65613085]
[1769737837779,0.01110411,2737.2,2735.5,3.65558927]
[1769737837981,0.01110411,2736.8,2735.0,0.91407247]
[1769737838183,0.01110411,2736.5,2734.9,3.65637218]
[1769737838416,0.01110411,2737.1,2736.0,0.91373458]
[1769737838585,0.92448717,2737.1,2735.2,3.65593011]
[1769737838910,0.92448717,2737.1,2735.1,0.91404336]
[1769737839087,0.01110411,2737.4,2735.3,12.97965849]
[1769737839288,0.36641324,2737.4,2735.2,0.4935854]
[1769737839511,0.01110411,2736.7,2735.2,0.4935854]
[1769737839689,0.01110411,2737.0,2735.1,0.91404336]
[1769737839889,0.01110411,2737.2,2735.1,0.91404336]
[1769737840092,0.37751735,2737.4,2735.5,12.97965849]
[1769737840312,0.92419909,2738.0,2735.7,12.9907626]
[1769737840481,29.74302286,2740.1,2735.7,12.9907626]
[1769737840482,7.5069097,2739.1,2736.4,13.90437172]
[1769737840687,0.01110411,2738.6,2736.5,1.75588082]
[1769737840893,0.01110411,2738.6,2736.4,0.91360912]
[1769737841213,0.01110411,2737.6,2736.3,0.91364024]
[1769737841512,0.01110411,2738.1,2736.3,0.91363404]
[1769737841712,0.01110411,2737.6,2736.0,0.002]
[1769737841912,0.01110411,2737.6,2736.3,0.91363694]
[1769737842112,0.01110411,2738.2,2736.3,0.91363694]
[1769737842317,0.01110411,2738.0,2736.3,0.91363694]
[1769737842517,0.91313073,2737.9,2736.0,3.65657003]
[1769737842684,0.91313073,2737.9,2736.0,0.002]
[1769737843016,0.01110411,2738.0,2736.0,0.002]
[1769737843315,3.66268064,2738.6,2736.0,0.002]
[1769737843316,0.92401263,2738.5,2736.2,12.97965849]
[1769737843633,0.36626806,2738.5,2736.3,14.28872845]
[1769737843821,0.01110411,2737.2,2735.8,0.002]
[1769737844035,0.01110411,2738.3,2735.8,12.98165849]
[1769737844525,0.01110411,2737.7,2735.9,0.91377608]
[1769737844740,0.91303671,2738.2,2735.9,13.90453868]
[1769737844942,0.91303671,2738.2,2735.8,0.91579851]
[1769737844943,0.01110411,2737.3,2735.8,0.91579851]
[1769737845090,0.01110411,2737.5,2735.8,0.91579851]
[1769737845428,0.01110411,2737.9,2735.8,0.91579851]
[1769737845626,0.01110411,2737.9,2735.8,13.895457]
[1769737845803,0.01110411,2738.5,2736.0,12.9907626]
[1769737846004,0.01110411,2738.1,2736.0,12.97965849]
[1769737846411,0.01110411,2738.5,2736.0,12.97965849]
[1769737846724,0.01110411,2737.7,2736.1,0.91370929]
[1769737846925,0.01110411,2737.7,2736.0,0.91374046]
[1769737847095,0.01110411,2737.5,2736.0,1.37081158]
[1769737847296,0.01110411,2737.5,2736.0,0.91373779]
[1769737847548,0.01110411,2738.0,2736.0,13.89339628]
[1769737847758,0.91280852,2738.8,2736.6,12.97965849]
[1769737847903,0.91274187,2739.0,2736.8,12.97965849]
[1769737848100,0.01110411,2738.9,2737.0,12.97965849]
[1769737848442,0.01110411,2739.1,2737.0,12.97965849]
[1769737848795,0.01110411,2738.2,2736.6,0.91352297]
[1769737849003,0.01110411,2737.7,2735.8,0.002]
[1769737849197,0.01110411,2737.3,2736.0,0.91372235]
[1769737849526,0.01110411,2738.0,2736.9,0.91342114]
[1769737849843,0.01110411,2738.1,2736.2,16.63433554]
[1769737850046,0.01110411,2738.1,2735.8,0.002]
[1769737850047,0.01110411,2738.0,2735.9,3.65503057]
[1769737850338,0.01110411,2737.8,2736.9,0.91342388]
[1769737850520,0.01110411,2738.0,2735.9,3.65501391]
[1769737850721,0.01110411,2737.8,2736.6,0.91350897]
[1769737850948,0.01110411,2737.8,2736.0,0.36570139]
[1769737850949,0.01110411,2737.9,2736.4,3.65440954]
[1769737851101,0.01110411,2737.5,2736.6,0.91354062]
[1769737851423,3.66247154,2738.8,2736.6,0.91354062]
[1769737851628,0.01110411,2738.2,2736.6,0.91354062]
[1769737851819,0.01110411,2738.0,2736.6,0.91354062]
[1769737852131,0.01110411,2738.0,2736.0,12.97965849]
[1769737852132,0.01110411,2737.7,2736.3,3.65453642]
[1769737852334,0.01110411,2737.7,2736.6,0.91353365]
[1769737852698,0.91304189,2738.1,2736.5,3.6541694]
[1769737852898,0.91304189,2738.1,2735.8,0.002]
[1769737852899,0.01110411,2737.6,2735.8,0.002]
[1769737853202,0.01110411,2737.6,2735.0,0.36563722]
[1769737853203,0.01110411,2736.6,2735.1,0.9140171]
[1769737853405,0.01110411,2736.4,2734.7,0.002]
[1769737853606,0.01110411,2737.2,2735.2,3.65593667]
[1769737853807,0.01110411,2737.2,2735.5,3.65559796]
[1769737854012,0.01110411,2737.2,2736.3,0.91362212]
[1769737854336,0.91304189,2738.1,2736.3,0.91362212]
[1769737854633,0.01110411,2738.1,2736.3,13.89328061]
[1769737854805,0.01110411,2737.9,2736.3,0.91362212]
[1769737855009,0.01110411,2737.7,2736.3,0.91362212]
[1769737855208,0.01110411,2737.9,2736.3,1.73591023]
[1769737855413,0.01110411,2737.7,2736.3,0.91362212]
[1769737856023,0.01110411,2737.0,2736.0,0.002]
[1769737856220,0.01110411,2737.0,2735.0,0.1024]
[1769737856221,0.01110411,2736.5,2735.1,0.91404336]
[1769737856533,0.01110411,2736.3,2735.1,0.91404336]
[1769737856709,0.01110411,2736.3,2734.7,0.002]
[1769737856918,0.92475107,2736.3,2734.7,0.002]
[1769737857112,0.01110411,2736.5,2734.7,0.002]
[1769737857320,1.28121106,2736.5,2734.7,0.002]
[1769737857629,7.52077086,2737.0,2734.8,12.79441773]
[1769737857630,0.91344221,2736.9,2734.8,12.79441773]
[1769737857834,0.01110411,2736.6,2734.8,12.79441773]
[1769737858599,0.91344221,2736.9,2734.8,12.79441773]
[1769737858842,0.01110411,2736.6,2734.9,0.9141102]
[1769737860134,0.01110411,2736.2,2734.9,0.9141102]
[1769737860338,0.91350897,2736.7,2734.9,1.73700938]
[1769737860707,3.66513999,2736.8,2734.7,0.002]
[1769737860708,0.91377608,2735.9,2734.7,0.002]
[1769737861513,11.81169084,2738.8,2734.7,0.002]
[1769737861514,0.01110411,2737.6,2735.1,12.79441773]
[1769737861845,3.65216756,2738.3,2735.0,7.9272449]
[1769737861846,0.91274187,2739.0,2736.6,12.79441773]
[1769737862031,0.1902667,2737.9,2736.6,12.79441773]
[1769737862351,0.01110411,2738.9,2736.6,12.79441773]
[1769737862570,0.001,2739.3,2737.7,12.79441773]
[1769737862768,0.001,2739.3,2737.6,0.01110411]
[1769737862769,0.912209,2740.6,2738.6,13.70729292]
[1769737862908,0.01110411,2739.6,2738.6,0.91287519]
[1769737863317,0.01110411,2739.9,2738.6,0.91287519]
[1769737863537,0.912209,2740.6,2738.6,0.91287519]
[1769737863713,0.01110411,2740.6,2738.6,14.16373052]
[1769737864235,0.01110411,2740.4,2738.6,14.16373052]
[1769737864421,0.01110411,2739.8,2738.6,0.91287519]
[1769737864747,0.9126086,2739.4,2737.9,0.91310858]
[1769737864942,0.9126086,2739.4,2737.8,12.79441773]
[1769737864943,0.9126086,2739.4,2737.8,0.91313082]
[1769737865238,0.91240875,2740.0,2737.8,14.16411841]
[1769737865424,0.91230887,2740.3,2738.1,12.79441773]
[1769737865736,0.91230887,2740.3,2736.8,7.9272449]
[1769737865737,0.01110411,2739.3,2736.8,7.9272449]
[1769737865919,0.01110411,2739.6,2737.8,0.9131392]
[1769737866309,0.01110411,2739.6,2737.1,0.01110411]
[1769737866310,0.01110411,2738.5,2736.5,3.65421724]
[1769737866506,0.01110411,2738.7,2736.5,0.002]
[1769737866709,0.9127752,2738.9,2737.0,3.65356919]
[1769737866935,0.9127752,2738.9,2736.9,0.91344221]
[1769737866936,0.01110411,2738.5,2736.9,0.91344221]
[1769737867147,0.01110411,2738.1,2736.9,0.91344221]
[1769737867322,0.01110411,2738.5,2736.9,0.91344221]
[1769737867523,0.01110411,2738.4,2736.9,0.91344221]
[1769737867724,0.45749018,2738.8,2737.0,13.25134735]
[1769737867954,0.01110411,2738.7,2737.0,13.25134735]
[1769737868248,0.01110411,2739.0,2737.0,13.25134735]
[1769737868550,0.92341298,2740.3,2737.8,12.79441773]
[1769737868751,0.92341298,2740.3,2738.1,0.91304189]
[1769737868752,0.01110411,2739.5,2738.1,0.91304189]
[1769737868919,0.01110411,2739.7,2738.1,0.91304189]
[1769737869113,0.01210411,2740.4,2738.1,13.70745962]
[1769737869338,0.01210411,2740.4,2738.3,12.79441773]
[1769737869538,0.9243841,2740.4,2738.3,12.79441773]
[1769737869818,0.01110411,2739.9,2738.3,12.79441773]
[1769737870044,0.01110411,2739.7,2738.3,12.79441773]
[1769737870232,0.92438499,2740.4,2738.3,13.37612966]
[1769737870436,0.01110411,2740.3,2738.3,13.37612966]
[1769737870746,0.01110411,2740.1,2738.3,13.37612966]
[1769737871111,0.91327977,2740.4,2738.4,13.70735959]
[1769737871313,0.001,2740.4,2738.7,7.9272449]
[1769737871517,0.001,2740.4,2738.6,12.79441773]
[1769737871518,0.74628545,2741.6,2739.6,12.79441773]
[1769737871752,0.74628545,2741.6,2739.8,12.79441773]
[1769737872134,0.74628545,2741.6,2740.0,12.79441773]
[1769737872491,0.01110411,2743.3,2740.8,12.79441773]
[1769737872619,0.01110411,2744.0,2742.6,0.1897818]
[1769737873068,0.01110411,2743.9,2742.7,0.91151055]
[1769737873368,0.93050605,2744.5,2742.7,14.18066174]
[1769737873523,0.0195836,2744.5,2742.7,14.18066174]
[1769737873854,0.0195836,2744.5,2742.7,1.38624401]
[1769737874020,0.0195836,2744.5,2742.7,14.18066174]
[1769737874356,0.0195836,2744.5,2742.7,0.92261466]
[1769737874557,3.64151305,2746.2,2742.7,0.92261466]
[1769737874558,0.01110411,2745.6,2743.2,12.79441773]
[1769737874727,7.88467424,2746.9,2743.2,12.79441773]
[1769737874728,0.01110411,2746.3,2743.8,12.79441773]
[1769737874949,0.01110411,2746.8,2743.1,13.13674152]
[1769737874950,0.01110411,2744.5,2743.1,13.13674152]
[1769737875148,0.01110411,2744.8,2743.2,0.91134441]
[1769737875348,0.01110411,2745.2,2743.2,15.69189898]
[1769737875559,0.01110411,2744.8,2743.2,15.69189898]
[1769737875749,0.01110411,2744.3,2743.0,0.91140264]
[1769737875974,0.01110411,2744.3,2742.4,12.79441773]
[1769737876261,0.01110411,2744.1,2741.8,3.64714053]
[1769737876466,0.01110411,2744.1,2741.6,12.79441773]
[1769737876467,0.01110411,2743.1,2741.6,12.79441773]
[1769737876691,0.01110411,2743.1,2740.9,15.41210916]
[1769737876692,0.01110411,2742.6,2740.9,15.41210916]
[1769737876969,0.01110411,2742.6,2740.8,16.44285437]
[1769737876970,0.01110411,2742.4,2740.8,0.91213831]
[1769737877177,0.01110411,2742.1,2740.1,13.70679319]
[1769737877480,0.01110411,2742.1,2740.0,3.64950184]
[1769737877481,0.01110411,2742.1,2740.0,13.70682266]
[1769737877642,0.01110411,2741.9,2740.0,13.70682266]
[1769737877973,0.91164351,2742.3,2740.0,13.70682266]
[1769737878173,0.01110411,2742.0,2740.1,12.79441773]
[1769737878360,0.01110411,2741.6,2740.0,0.91240493]
[1769737878695,0.01110411,2740.8,2739.8,0.91247521]
[1769737878977,0.01110411,2741.6,2739.6,3.65016697]
[1769737878978,0.91164351,2742.3,2740.0,0.91239918]
[1769737879181,3.39744318,2740.4,2737.1,0.002]
[1769737879477,3.39744318,2740.4,2737.3,12.79441773]
[1769737879478,0.01110411,2740.2,2737.3,12.79441773]
[1769737879681,0.01110411,2740.2,2737.1,0.9153421]
[1769737879682,0.01110411,2739.6,2737.4,12.79441773]
[1769737879981,0.01110411,2739.6,2737.1,0.91537249]
[1769737879982,0.01110411,2738.8,2737.1,0.91537249]
[1769737880285,0.01110411,2741.1,2738.0,12.79441773]
[1769737880441,0.01110411,2740.1,2738.2,12.79441773]
[1769737881043,0.91240875,2740.0,2738.3,0.9129752]
[1769737881243,0.91240875,2740.0,2738.3,2.3851322]
[1769737881476,0.91240875,2740.0,2737.3,12.79441773]
[1769737881477,0.01110411,2739.5,2737.3,12.79441773]
[1769737881674,0.01110411,2738.8,2737.1,0.002]
[1769737881854,0.01110411,2739.7,2737.1,0.002]
[1769737881855,0.01110411,2739.8,2738.2,0.91299639]
[1769737882042,0.92351286,2740.0,2737.7,12.79441773]
[1769737882242,0.92351286,2740.0,2737.8,14.0738595]
[1769737882243,0.01110411,2739.6,2737.8,14.0738595]
[1769737882489,0.01110411,2739.3,2737.1,12.79641773]
[1769737882677,0.01110411,2739.8,2737.5,12.79441773]
[1769737882979,0.01110411,2739.8,2737.1,0.002]
[1769737882980,0.01110411,2739.4,2737.1,0.002]
[1769737883190,0.91257528,2739.5,2737.5,12.80552184]
[1769737883349,0.92367939,2739.5,2737.6,1.28055218]
[1769737883544,0.01110411,2738.9,2737.1,0.91536812]
[1769737883765,0.01110411,2738.4,2737.1,0.91537324]
[1769737883958,0.01110411,2738.9,2737.1,0.91536792]
[1769737884281,0.01110411,2738.9,2737.1,13.70978565]
[1769737884592,0.01110411,2738.3,2737.1,0.002]
[1769737884892,0.01110411,2738.5,2737.1,0.91537151]
[1769737885091,0.91287519,2738.6,2737.1,0.002]
[1769737885295,0.01110411,2738.5,2737.1,0.002]
[1769737885999,0.91287519,2738.6,2737.1,0.002]
[1769737886290,0.46865212,2738.5,2737.1,0.002]
[1769737886493,0.45754801,2738.5,2737.1,0.002]
[1769737887283,3.66260487,2738.7,2737.1,0.002]
[1769737887284,0.92361277,2739.8,2737.1,12.9326436]
[1769737887497,0.92361277,2739.8,2737.4,12.9306436]
[1769737887498,0.01110411,2739.0,2737.4,12.9306436]
[1769737887672,0.01110411,2739.3,2737.4,12.9306436]
[1769737887875,0.01110411,2739.7,2737.6,12.9306436]
[1769737888398,0.01110411,2740.4,2738.3,12.9306436]
[1769737888566,0.91226248,2740.5,2738.3,12.9306436]
[1769737888766,0.91226248,2740.5,2738.4,12.94174771]
[1769737888963,0.91197606,2741.3,2738.9,12.9306436]
[1769737889177,0.01110411,2740.6,2739.0,0.91274187]
[1769737889465,0.01110411,2740.6,2738.5,1.29417477]
[1769737889466,0.01110411,2740.4,2738.5,1.29417477]
[1769737889686,0.01110411,2740.8,2739.0,12.9306436]
[1769737889861,0.91210916,2740.9,2739.0,12.9306436]
[1769737890066,0.92311187,2741.3,2739.0,12.9306436]
[1769737890301,3.65795394,2742.1,2739.4,12.9306436]
[1769737890302,0.91174325,2742.0,2739.4,12.9306436]
[1769737890597,0.01110411,2741.8,2739.5,14.22481837]
[1769737890782,0.01110411,2741.6,2739.6,12.9306436]
[1769737890995,0.01110411,2741.6,2738.9,13.84341693]
[1769737890996,0.01110411,2741.0,2738.9,13.84341693]
[1769737891212,0.91187627,2741.6,2739.3,12.9306436]
[1769737891368,0.01110411,2740.7,2739.3,12.9306436]
[1769737891567,0.01110411,2741.1,2739.3,12.9306436]
[1769737891803,1.36876349,2741.9,2739.5,12.9306436]
[1769737892100,0.01110411,2740.7,2739.5,12.9306436]
[1769737892303,0.01110411,2740.6,2739.5,12.9306436]
[1769737892593,0.001,2740.8,2739.2,0.91267523]
[1769737892806,0.01110411,2740.5,2739.2,0.91267523]
[1769737892964,0.01110411,2740.7,2739.2,1.73408294]
[1769737893167,0.912209,2740.6,2739.2,1.73408294]
[1769737893393,0.912209,2740.6,2739.2,14.66472654]
[1769737893579,0.912209,2740.6,2739.2,13.84331883]
[1769737893822,0.01110411,2740.5,2739.2,12.9306436]
[1769737893987,0.01110411,2740.5,2737.9,0.002]
[1769737893988,0.01110411,2739.5,2737.9,0.002]
[1769737894194,0.01110411,2739.1,2737.9,0.91510032]
[1769737894502,0.01110411,2739.5,2737.9,0.91510032]
[1769737894503,0.01110411,2739.5,2737.9,15.59557669]
[1769737894974,0.01110411,2739.8,2737.9,15.59557669]
[1769737895180,3.65994013,2740.9,2737.9,15.59557669]
[1769737895181,0.92343172,2740.3,2737.9,15.59557669]
[1769737895384,0.01110411,2739.8,2737.9,15.59557669]
[1769737895620,0.01110411,2739.4,2737.9,13.84574392]
[1769737895904,0.01110411,2739.8,2737.9,13.84574392]
[1769737896200,0.01110411,2739.4,2737.9,13.84574392]
[1769737896577,0.01110411,2739.5,2737.9,13.84574392]
[1769737897514,0.01110411,2739.8,2737.9,13.84574392]
[1769737897718,0.01110411,2740.1,2738.1,13.87031886]
[1769737897719,0.91240875,2740.0,2738.1,13.87031886]
[1769737897918,0.01110411,2739.4,2738.1,13.87031886]
[1769737898063,0.01110411,2739.0,2737.9,0.002]
[1769737898271,0.01110411,2737.6,2736.9,0.91543771]
[1769737898508,0.01110411,2738.1,2736.9,0.91543919]
[1769737898669,0.01110411,2737.9,2736.9,1.37256]
[1769737898869,0.01110411,2737.7,2736.9,0.91543919]
[1769737899092,0.01110411,2737.5,2736.9,0.91543919]
[1769737899397,0.01110411,2737.9,2736.9,0.002]
[1769737899598,0.01110411,2737.2,2736.8,0.002]
[1769737899796,0.92421905,2737.9,2736.5,0.002]
[1769737899797,0.01110411,2737.1,2736.5,0.91556802]
[1769737900375,0.01110411,2737.3,2736.5,0.91556802]
[1769737900776,0.01110411,2737.1,2736.5,0.91556802]
[1769737900972,0.01110411,2738.2,2736.5,0.91556802]
[1769737901175,0.01110411,2737.5,2736.5,0.91556802]
[1769737901372,0.01110411,2737.5,2736.5,0.002]
[1769737901571,0.01110411,2737.3,2736.5,0.002]
[1769737901880,0.01110411,2737.7,2736.5,13.87231886]
[1769737902079,0.92428723,2737.7,2736.5,13.87231886]
[1769737902279,0.01110411,2737.6,2736.5,13.87231886]
[1769737902807,0.01110411,2737.6,2736.5,0.002]
[1769737902808,0.01110411,2737.4,2736.5,0.002]
[1769737903103,0.01110411,2737.4,2735.8,13.87231886]
[1769737903104,0.01110411,2735.5,2735.0,13.87031886]
[1769737903408,0.01110411,2734.9,2734.7,0.002]
[1769737903614,0.01110411,2735.4,2734.7,13.87231886]
[1769737903829,0.01110411,2735.2,2734.7,0.002]
[1769737903970,0.01110411,2735.6,2734.7,13.87231886]
[1769737904177,0.01110411,2735.8,2734.7,13.87231886]
[1769737904178,0.01110411,2735.1,2734.7,15.25955075]
[1769737904508,0.01110411,2735.5,2734.7,15.25955075]
[1769737904509,0.01110411,2735.0,2734.7,0.002]
[1769737904872,0.01110411,2735.2,2734.7,0.002]
[1769737905094,0.01110411,2735.0,2734.8,13.87031886]
[1769737905434,0.01110411,2735.0,2734.2,0.91434423]
[1769737905718,0.01110411,2734.8,2733.6,3.65804587]
[1769737906009,0.01110411,2734.0,2733.7,1.28031605]
[1769737906229,0.01110411,2734.0,2733.7,0.91451146]
[1769737906424,0.01110411,2734.2,2733.7,0.91451146]
[1769737906589,0.01110411,2733.8,2733.6,3.65804587]
[1769737906903,0.01110411,2734.0,2733.5,0.91457837]
[1769737907127,0.01110411,2733.8,2733.5,0.91457837]
[1769737907274,0.01110411,2734.0,2733.5,0.91457837]
[1769737907483,0.01110411,2734.4,2733.5,0.91457837]
[1769737907484,0.01110411,2734.4,2733.5,0.82313066]
[1769737907701,0.01110411,2734.4,2733.2,13.87031886]
[1769737907702,0.01110411,2734.5,2733.2,13.87031886]
[1769737907878,0.01110411,2734.4,2733.2,13.87031886]
[1769737908078,0.01110411,2734.5,2733.2,13.87031886]
[1769737908274,0.01110411,2735.2,2733.7,13.87231886]
[1769737908598,0.01110411,2735.2,2733.9,13.87031886]
[1769737908934,0.01110411,2734.5,2733.9,13.87031886]
[1769737909091,0.01110411,2733.8,2732.6,3.65925058]
[1769737909422,0.01110411,2733.8,2731.9,13.87031886]
[1769737909423,0.01110411,2733.4,2732.4,3.65938449]
[1769737909712,0.01110411,2733.2,2732.5,0.7318769]
[1769737909882,0.01110411,2732.8,2732.1,0.91504703]
[1769737910077,0.01110411,2733.6,2732.1,0.91504703]
[1769737910313,0.01110411,2732.3,2732.0,1.16889277]
[1769737910637,0.01110411,2733.2,2732.0,15.26830752]
[1769737910912,0.01110411,2732.9,2732.0,15.26830752]
[1769737911116,0.01110411,2733.4,2732.0,15.26830752]
[1769737911431,0.01110411,2734.3,2732.3,0.91498005]
[1769737911580,0.01110411,2733.5,2732.8,13.87031886]
[1769737911785,0.01110411,2734.0,2732.8,13.87031886]
[1769737911987,0.01110411,2733.8,2732.9,14.27448506]
[1769737912213,0.01110411,2733.9,2732.9,14.27448506]
[1769737912427,0.01110411,2734.4,2732.9,14.27448506]
[1769737912637,0.01110411,2734.0,2732.9,14.27448506]
[1769737912843,0.01110411,2733.8,2732.9,14.27448506]
[1769737913028,0.01110411,2733.9,2733.0,14.35325089]
[1769737913232,0.01110411,2735.8,2733.0,14.35325089]
[1769737913441,0.01110411,2734.8,2733.8,13.87031886]
[1769737913608,0.01110411,2735.8,2733.7,0.91451146]
[1769737913609,0.01110411,2734.3,2733.7,0.91451146]
[1769737913813,0.01110411,2735.1,2733.7,15.60789064]
[1769737914014,0.01110411,2734.5,2733.7,15.60789064]
[1769737914313,0.92501458,2735.5,2733.7,15.60789064]
[1769737914314,0.01110411,2735.5,2733.8,13.87031886]
[1769737914640,0.01110411,2735.8,2733.8,13.87031886]
[1769737914641,0.01110411,2735.4,2733.8,13.87031886]
[1769737914838,0.01110411,2735.0,2734.0,13.87031886]
[1769737915013,3.65354793,2737.1,2734.0,13.87031886]
[1769737915214,0.01110411,2736.1,2734.0,13.87031886]
[1769737915414,0.01110411,2736.1,2734.2,13.08502375]
[1769737915415,0.01110411,2735.7,2734.2,13.08502375]
[1769737915639,0.01110411,2735.2,2734.4,13.08502375]
[1769737915949,0.01110411,2734.8,2734.1,0.91437767]
[1769737916125,0.01110411,2735.2,2734.1,0.91437767]
[1769737916126,0.01110411,2734.7,2734.1,0.91437767]
[1769737916337,0.766,2735.6,2734.1,0.91437767]
[1769737916338,0.91386562,2735.7,2734.1,0.91437767]
[1769737916526,0.01110411,2735.1,2734.1,0.91437767]
[1769737916833,0.01110411,2735.6,2734.2,13.08502375]
[1769737917035,1e-08,2735.8,2734.2,13.08502375]
[1769737917342,0.01110411,2735.5,2734.4,13.08502375]
[1769737917517,0.01110411,2735.4,2734.5,0.91424392]
[1769737917911,0.01110411,2735.6,2734.5,0.91424392]
[1769737918213,0.01110411,2735.2,2734.6,1.76562434]
[1769737918421,0.01110411,2734.7,2734.4,0.9142554]
[1769737918728,0.01110411,2735.7,2734.4,0.9142554]
[1769737918920,0.01110411,2735.2,2734.4,0.9142554]
[1769737919123,0.01110411,2735.7,2734.4,0.9142554]
[1769737919333,0.01110411,2735.5,2734.5,0.45713648]
[1769737919645,0.01110411,2735.7,2734.6,0.91421048]
[1769737919850,0.01110411,2735.3,2734.6,0.91421048]
[1769737920146,0.001,2735.2,2734.6,0.91421048]
[1769737920373,0.01110411,2735.8,2734.6,13.99923423]
[1769737920655,0.01110411,2737.2,2734.8,13.08502375]
[1769737920839,0.91349481,2736.8,2734.8,13.08502375]
[1769737921025,0.01110411,2736.7,2734.8,13.08502375]
[1769737921238,0.01110411,2736.8,2734.8,13.08502375]
[1769737921537,0.01110411,2736.8,2734.9,0.9141102]
[1769737921538,0.01110411,2735.8,2734.9,0.9141102]
[1769737921721,0.01110411,2735.3,2734.1,13.08502375]
[1769737921920,3.66460599,2737.2,2734.8,0.91411549]
[1769737922114,0.01110411,2735.7,2734.8,0.91411549]
[1769737922314,0.01110411,2736.2,2734.8,0.91411549]
[1769737922516,0.01110411,2735.9,2734.8,0.91411549]
[1769737922821,0.01110411,2736.1,2734.8,0.91411549]
[1769737923017,0.01110411,2736.6,2734.8,14.82186569]
[1769737923440,0.01110411,2736.2,2734.8,14.82186569]
[1769737923816,0.92466482,2736.6,2734.8,14.82186569]
[1769737924045,0.01110411,2735.9,2734.8,0.91411549]
[1769737924245,0.01110411,2736.0,2734.8,0.91411549]
[1769737924564,0.01110411,2735.8,2734.8,0.91411549]
[1769737925126,0.01110411,2736.3,2734.8,0.91411549]
[1769737925329,0.01110411,2736.2,2734.8,3.04534432]
[1769737925520,0.01110411,2736.0,2734.8,0.91411549]
[1769737925921,0.01110411,2736.0,2734.4,3.65657452]
[1769737926140,0.01110411,2736.2,2734.5,13.08502375]
[1769737926531,0.01110411,2736.0,2734.5,13.08502375]
[1769737926848,0.01110411,2736.6,2734.2,13.99936798]
[1769737927069,0.01110411,2735.8,2734.4,13.08502375]
[1769737928043,0.01110411,2735.8,2734.5,0.91424392]
[1769737928433,0.01110411,2735.6,2733.5,13.08502375]
[1769737928620,0.01110411,2735.6,2733.4,0.1024]
[1769737928621,0.924947,2735.7,2734.4,0.91425694]
[1769737928820,0.01110411,2735.5,2734.4,0.91425694]
[1769737929033,0.01110411,2735.5,2734.3,0.91429356]
[1769737929034,0.01110411,2734.9,2734.3,0.91429356]
[1769737929352,0.01110411,2735.1,2734.4,0.91427538]
[1769737929516,0.77710411,2735.5,2734.4,0.91427538]
[1769737929721,0.01110411,2735.0,2734.4,0.91427538]
[1769737929933,0.01110411,2735.2,2734.1,0.91437767]
[1769737930131,0.01110411,2735.1,2734.1,0.91437767]
[1769737930543,0.01110411,2734.9,2733.5,3.65821468]
[1769737930721,0.01110411,2734.3,2733.4,0.91459121]
[1769737930926,0.01110411,2734.3,2732.9,3.66100181]
[1769737930927,0.01110411,2734.1,2733.5,0.91457584]
[1769737931120,0.01110411,2734.5,2733.9,0.91444434]
[1769737931386,0.01110411,2734.1,2732.9,0.002]
[1769737931521,0.01110411,2733.9,2733.0,0.91473515]
[1769737931728,0.01110411,2734.3,2733.1,0.91670877]
[1769737931954,0.91441111,2734.0,2733.1,0.002]
[1769737932121,0.01110411,2734.1,2733.1,0.002]
[1769737932322,0.91437816,2734.1,2733.1,0.002]
[1769737932523,0.01110411,2733.9,2733.1,0.002]
[1769737932723,0.01110411,2733.5,2732.9,0.002]
[1769737933152,0.01110411,2733.9,2732.9,0.002]
[1769737933358,0.01110411,2733.7,2732.9,0.002]
[1769737933655,0.01110411,2733.0,2732.6,0.91487001]
[1769737933952,0.9257382,2733.4,2732.5,0.91489185]
[1769737934157,0.9257382,2733.4,2731.2,13.08502375]
[1769737934158,0.01110411,2733.0,2731.2,13.08502375]
[1769737934366,0.01110411,2733.0,2730.3,0.25368124]
[1769737934367,0.01110411,2732.0,2731.3,3.66125604]
[1769737934672,0.01110411,2732.2,2731.0,3.66161874]
[1769737934828,0.01110411,2732.2,2730.5,13.08502375]
[1769737934829,0.01110411,2732.4,2731.1,4.02762661]
[1769737935029,0.01110411,2732.6,2731.8,0.91513943]
[1769737935249,0.01110411,2732.8,2731.8,0.91513943]
[1769737935562,0.01110411,2732.6,2731.8,0.91513943]
[1769737935750,0.01110411,2732.9,2731.8,14.00016318]
[1769737935952,0.01110411,2732.7,2731.8,0.91513943]
[1769737936154,0.01110411,2732.3,2731.1,13.08502375]
[1769737936341,0.01110411,2732.1,2731.6,0.91520796]
[1769737936857,0.01110411,2732.5,2731.8,0.91514204]
[1769737937269,0.01110411,2732.9,2731.8,1.73877443]
[1769737937567,0.01110411,2732.9,2731.7,3.66059179]
[1769737937568,0.01110411,2732.5,2731.7,3.66059179]
[1769737937732,0.01110411,2733.5,2731.8,14.00016579]
[1769737938056,0.01110411,2733.3,2732.1,0.91504703]
[1769737938361,0.01110411,2734.3,2732.2,13.08502375]
[1769737938548,0.01110411,2734.8,2732.1,0.91504703]
[1769737938549,0.01110411,2734.6,2732.4,13.08502375]
[1769737938749,0.01110411,2734.4,2732.5,0.1024]
[1769737938961,0.01110411,2735.1,2733.0,13.08502375]
[1769737939150,0.92482895,2736.1,2733.6,13.08502375]
[1769737939331,0.01110411,2734.9,2733.8,13.08502375]
[1769737939660,0.01110411,2735.2,2733.8,13.08502375]
[1769737939863,0.01110411,2735.2,2732.3,0.01110411]
[1769737939864,0.01110411,2734.6,2732.8,13.08502375]
[1769737940037,0.01110411,2734.9,2733.0,13.99976945]
[1769737940361,0.01110411,2734.5,2733.0,13.99976945]
[1769737940563,0.01110411,2734.7,2733.0,13.99976945]
[1769737940962,0.01110411,2735.2,2733.0,13.99976945]
[1769737941268,0.01110411,2735.0,2733.2,13.08502375]
[1769737941465,0.01110411,2735.2,2733.2,13.08502375]
[1769737941775,0.01110411,2735.9,2733.6,13.08502375]